Cogmind - Beta 11.1 --- EXPLORER MODE // 2022.09.08 @ 18:51:50 Player: darlorth Result: Escaped! Performance ------------- Evolutions (9) 4500 Regions Visited (22) 4400 Robots Destroyed (659) 3295 Value Destroyed (31242) 31242 Prototype IDs (24) 480 Alien Tech Used (0) 0 Bonus (5473) 5473 TOTAL SCORE: 49390 Bonus ------- High Alert Combat Kills 1070 Follower Combat Kills 814 Entered Garrisons 200 Used RIF Installer 500 Aligned with FarCom 300 Win 3000 Friendly Fire -411 Cogmind --------- Core Integrity 1600/1600 Matter 434/450 Energy 579/600 System Corruption 3% Temperature Cool (-181) Movement Treading (155) Location To Epsilon Eridani Parts ------- > --- POWER (2) -------- Quantum Reactor Quantum Reactor > --- PROPULSION (6) --- Biometal Heavy Treads Advanced Heavy Siege Treads Advanced Heavy Siege Treads > --- UTILITY (14) ----- Advanced Cryofiber Web Advanced Heat Sink Huge Storage Unit Compact Matter Pod Long-range Terrain Scanner Advanced Terrain Scan Processor Advanced Salvage Targeting Computer Advanced Targeting Computer Advanced Target Analyzer Core Analyzer Advanced Weapon Cycler Improved Utility Shielding Layered Heavy Armor Plating > --- WEAPON (4) ------- Railgun Railgun Railgun Linear Accelerator > --- INVENTORY (25) --- Particle Reactor Particle Reactor Advanced Heavy Siege Treads Advanced Cryofiber Web Medium Matter Pod (100) Advanced Target Analyzer Improved Utility Shielding Heavy Armor Plating Heavy Armor Plating Heavy Armor Plating Quantum Rifle Railgun Railgun Linear Accelerator Linear Accelerator Linear Accelerator Smartbomb Launcher Micro-nuke Launcher Advanced Remote Datajack Plasma Sword Peak State ------------ > --- POWER ------------ Quantum Reactor Quantum Reactor > --- PROPULSION ------- Biometal Heavy Treads Advanced Heavy Siege Treads Advanced Heavy Siege Treads > --- UTILITY ---------- Advanced Cryofiber Web Advanced Heat Sink Huge Storage Unit Compact Matter Pod Long-range Terrain Scanner Advanced Terrain Scan Processor Advanced Salvage Targeting Computer Advanced Targeting Computer Advanced Target Analyzer Core Analyzer Advanced Weapon Cycler Improved Utility Shielding Layered Heavy Armor Plating > --- WEAPON ----------- Railgun Railgun Railgun Linear Accelerator > --- INVENTORY -------- Particle Reactor Particle Reactor Advanced Heavy Siege Treads Advanced Cryofiber Web Medium Matter Pod Advanced Target Analyzer Improved Utility Shielding Heavy Armor Plating Heavy Armor Plating Heavy Armor Plating Quantum Rifle Railgun Railgun Linear Accelerator Linear Accelerator Linear Accelerator Smartbomb Launcher Micro-nuke Launcher Advanced Remote Datajack Plasma Sword [Rating: 186] Favorites ----------- Power Quantum Reactor Engine Light Angular Momentum Engine Power Core Light Nuclear Core Reactor Quantum Reactor Propulsion Armored Treads Treads Armored Treads Leg Improved Titanium Leg Wheel Compact Wheel Utility Huge Storage Unit Device Advanced Heat Sink Storage Huge Storage Unit Processor Advanced Target Analyzer Hackware Hacking Suite Protection Heavy Armor Plating Weapon Railgun Energy Gun Improved Heavy Laser Energy Cannon Particle Cannon Ballistic Gun Railgun Ballistic Cannon Linear Accelerator Launcher Mini Grenade Launcher Special Weapon Improved Remote Datajack Impact Weapon Impact Mace Slashing Weapon Axe Special Melee Weapon Datajack Build | -11 -10 -10 -9 -9 -9 -8 -8 -8 -8 -8 -7 -7 -7 -6 -6 -6 -5 -4 -4 -3 -2 -1 ------- Run | Scr Mat Min Mat Min Exi Min Mat Gar Mat Sto Fac Was Fac Fac Low Low Fac Fac Arm Res Res Acc Slots Evolved 19 | . 1 . 2 . . . 2 . . . 2 . . 2 . . 2 2 . 2 2 2 Power 1 | . . . . . . . . . . . . . . . . . 1 . . . . . Propulsion 4 | . . . . . . . 2 . . . . . . . . . . . . 2 . . Utility 12 | . . . 2 . . . . . . . 2 . . 1 . . 1 2 . . 2 2 Weapon 2 | . 1 . . . . . . . . . . . . 1 . . . . . . . . Parts Attached 506 | 7 3 . 22 1 3 2 4 11 20 19 37 23 32 10 5 2 36 65 59 69 48 28 Power 42 | 1 1 . 2 . . . . 1 1 1 2 3 1 2 . . 3 10 4 6 1 3 Engine 22 | 1 1 . 2 . . . . 1 1 1 2 2 1 2 . . 2 6 . . . . Core 1 | . . . . . . . . . . . . 1 . . . . . . . . . . Reactor 19 | . . . . . . . . . . . . . . . . . 1 4 4 6 1 3 Propulsion 90 | 2 . . 3 . . . 2 . 3 5 9 8 9 1 . . 8 9 10 8 9 4 Treads 77 | 2 . . 3 . . . 2 . 3 5 9 6 6 1 . . 8 6 5 8 9 4 Leg 10 | . . . . . . . . . . . . 2 3 . . . . . 5 . . . Wheel 3 | . . . . . . . . . . . . . . . . . . 3 . . . . Hover . | . . . . . . . . . . . . . . . . . . . . . . . Flight . | . . . . . . . . . . . . . . . . . . . . . . . Utility 178 | 2 1 . 9 . . . 1 3 4 1 11 5 14 3 2 2 14 25 15 31 21 14 Device 89 | . . . 4 . . . 1 2 1 1 7 1 6 1 2 1 6 16 11 15 7 7 Storage 13 | . 1 . . . . . . . 1 . . . 4 2 . . . 1 . 1 1 2 Processor 14 | . . . 1 . . . . . . . . 1 . . . . 1 . 1 6 2 2 Hackware 3 | . . . 1 . . . . . 1 . . . . . . . . . . 1 . . Protection 59 | 2 . . 3 . . . . 1 1 . 4 3 4 . . 1 7 8 3 8 11 3 Artifact . | . . . . . . . . . . . . . . . . . . . . . . . Weapon 196 | 2 1 . 8 1 3 2 1 7 12 12 15 7 8 4 3 . 11 21 30 24 17 7 Energy Gun 59 | 2 1 . 1 . 1 2 . 1 3 8 10 4 6 1 . . 4 5 5 . 2 3 Energy Cannon 47 | . . . 2 . 2 . . 3 5 1 2 . 2 3 2 . 6 15 4 . . . Ballistic Gun 34 | . . . . . . . . . . . 1 . . . . . . . 6 17 7 3 Ballistic Cannon 18 | . . . . . . . . 1 . 1 . . . . . . . . 9 2 4 1 Launcher 16 | . . . 1 1 . . . . 2 2 . 1 . . 1 . 1 . 2 2 3 . Special Weapon 3 | . . . . . . . . . . . . . . . . . . 1 . 1 1 . Impact Weapon 4 | . . . . . . . . . . . 1 1 . . . . . . 1 1 . . Slashing Weapon 8 | . . . 2 . . . 1 1 . . . . . . . . . . 3 1 . . Piercing Weapon . | . . . . . . . . . . . . . . . . . . . . . . . Special Melee Weapon 7 | . . . 2 . . . . 1 2 . 1 1 . . . . . . . . . . Unidentified Prototypes 19 | . . . . . 1 . . . 1 1 6 . 3 2 . . 1 . 1 3 . . Corrupted Parts 5 | . . . . . . . . . . . . . . . . . . 2 3 . . . System Corruption 12 | . . . . . . . . . . . . . . . . . . 4 8 . . . Parts Lost 65 | . . . 1 . . . . 1 . . . 8 1 1 . . 1 29 6 10 7 . Power 6 | . . . . . . . . . . . . . . 1 . . . 3 1 1 . . Propulsion 10 | . . . . . . . . . . . . 4 . . . . . 6 . . . . Utility 37 | . . . 1 . . . . 1 . . . 3 1 . . . 1 15 5 6 4 . Weapon 12 | . . . . . . . . . . . . 1 . . . . . 5 . 3 3 . Highest Loss Streak 9 | . . . 1 . . . . 1 . . . 7 1 1 . . 1 9 3 3 2 . To Critical Strikes 2 | . . . . . . . . . . . . . . . . . . 1 . . 1 . Average Slot Usage (%) 91 | . 93 100 97 100 99 100 99 99 100 99 99 57 91 92 93 93 97 88 88 80 81 80 Engine 5 | . 12 12 10 10 10 10 8 8 8 8 7 3 7 6 6 6 6 3 . . . . Reactor 2 | . . . . . . . . . . . . . . . . . 3 6 9 8 8 7 Treads 20 | . 25 25 19 20 20 20 33 33 33 33 27 2 17 25 25 25 21 12 7 13 12 11 Leg 1 | . . . . . . . . . . . . 4 9 . . . . . 7 . . . Device 17 | . . . 17 10 10 10 12 16 13 16 27 19 14 19 25 25 26 30 29 16 13 12 Storage 7 | . 10 12 10 10 10 10 8 8 8 8 7 . 8 10 6 6 5 6 7 6 8 6 Processor 3 | . . . . . . . . . . . . 4 . . . . . . 2 8 15 17 Protection 8 | . 13 12 9 10 10 10 8 7 8 8 7 8 12 6 6 6 10 7 4 5 6 8 Energy Gun 11 | . 31 37 3 10 10 19 16 11 13 21 19 6 20 8 6 6 8 4 3 . . 1 Energy Cannon 5 | . . . 18 10 9 10 3 9 10 2 1 . . 14 17 18 13 14 3 . . . Ballistic Gun 2 | . . . . . . . . . . . . . . . . . . . 5 17 13 9 Naked Turns . | . . . . . . . . . . . . . . . . . . . . . . . Heaviest Build 194 | 11 89 89 108 103 103 106 112 118 107 110 121 118 74 144 147 147 162 163 194 188 185 192 Greatest Support 235 | 40 40 40 40 40 40 40 80 80 80 80 80 68 80 80 80 80 96 150 131 215 220 235 Greatest Overweight (x) 46 | . 2 2 5 2 2 2 1 1 1 2 1 9 1 1 1 1 3 46 4 . 1 1 Average Overweight (x) . | . 1 2 2 2 2 2 1 1 1 1 1 1 . . 1 1 1 3 1 . . . Largest Inventory Capacity 25 | 5 25 25 25 25 25 25 25 25 25 25 25 25 15 25 25 25 25 25 25 25 25 25 Average Capacity 22 | 5 22 25 25 25 25 25 25 25 25 25 25 6 10 20 25 25 25 25 25 25 25 25 Most Carried 25 | 5 8 9 25 25 25 25 25 25 25 25 25 25 15 19 25 25 25 25 25 25 25 25 Average Carried 19 | 3 6 7 19 25 24 25 24 24 24 24 24 6 9 15 23 24 23 18 20 24 23 24 Final Capacity 25 | 5 25 25 25 25 25 25 25 25 25 25 25 5 15 25 25 25 25 25 25 25 25 25 Final Carried 25 | 4 7 9 25 25 25 25 25 25 25 24 25 5 13 19 25 25 22 13 25 25 24 25 Class Distribution -------------------- 23% | Hacker-Skirmisher 22% | Hacker-Tank 19% | Scavenger-Gunner 14% | Hacker-Mutant 7% | Scavenger-Tank 6% | Scavenger-Skirmisher 3% | Scavenger-Mutant Dominant Class ---------------- Hacker-Tank | -10/Materials Hacker-Tank | -10/Mines Hacker-Mutant | -9/Materials Hacker-Mutant | -9/Mines Hacker-Tank | -9/Exiles Hacker-Skirmisher | -8/Mines Hacker-Mutant | -8/Materials Hacker-Skirmisher | -8/Garrison Hacker-Skirmisher | -8/Materials Hacker-Skirmisher | -8/Storage Hacker-Skirmisher | -7/Factory Hacker-Mutant | -7/Waste Hacker-Tank | -7/Factory Hacker-Skirmisher | -6/Factory Hacker-Tank | -6/Lower Caves Hacker-Tank | -6/Lower Caves Scavenger-Tank | -5/Factory Scavenger-Tank | -4/Factory Hacker-Tank | -4/Armory Scavenger-Gunner | -3/Research Scavenger-Gunner | -2/Research Scavenger-Gunner | -1/Access Resources | -11 -10 -10 -9 -9 -9 -8 -8 -8 -8 -8 -7 -7 -7 -6 -6 -6 -5 -4 -4 -3 -2 -1 ----------- Run | Scr Mat Min Mat Min Exi Min Mat Gar Mat Sto Fac Was Fac Fac Low Low Fac Fac Arm Res Res Acc Matter Collected 16160 | 215 85 . 222 50 30 10 50 152 326 377 522 225 290 237 120 33 435 734 1519 3940 4661 1927 Remotely . | . . . . . . . . . . . . . . . . . . . . . . . Salvage Created 38290 | . 397 191 1707 20 . 131 22 431 1126 2010 3070 . 1608 559 482 . 2197 4136 1671 7356 8336 2840 Parts 1830 | . 29 4 94 4 . 3 4 18 49 99 154 . 71 23 10 . 74 149 79 376 448 142 Haulers Intercepted 35 | . 1 . 6 . . . . . 4 5 7 . 2 . . . 2 3 . 2 2 1 Recyclers Shooed 18 | . . 1 1 . . 1 . . . . 1 . 2 . . . 2 3 . 4 1 2 Parts Field Recycled 6 | . . . . . . . . . . . . . . . . . . . . 6 . . Retrieved Matter 31 | . . . . . . . . . . . . . . . . . . . . 31 . . Parts Self-Destructed . | . . . . . . . . . . . . . . . . . . . . . . . Prevented . | . . . . . . . . . . . . . . . . . . . . . . . Kills | -11 -10 -10 -9 -9 -9 -8 -8 -8 -8 -8 -7 -7 -7 -6 -6 -6 -5 -4 -4 -3 -2 -1 ------- Run | Scr Mat Min Mat Min Exi Min Mat Gar Mat Sto Fac Was Fac Fac Low Low Fac Fac Arm Res Res Acc Combat Hostiles Destroyed 500 | . 7 3 28 2 . 3 2 11 18 30 43 . 26 9 8 . 29 52 31 79 85 34 Melee 1 | . . . . . . . . . . . . . . . . . . . . . 1 . Guns 278 | . 7 3 3 . . . 2 3 7 24 32 . 23 1 1 . 5 7 15 74 55 16 Cannons 179 | . . . 24 . . 3 . 5 8 2 9 . . 8 5 . 20 41 11 . 25 18 AOE 21 | . . . 1 2 . . . . 2 2 . . . . . . . . 5 5 4 . Classes Destroyed 20 | . 8 . 2 . . 1 . 1 . 1 1 . . . . . 1 2 1 1 1 . Worker 30 | . 1 . 3 1 . . . . 1 2 3 . . . . . . . . 3 16 . Builder 28 | . 1 . 1 . . . . . 1 2 1 . . 1 . . . 6 . 5 9 1 Tunneler 10 | . 1 . 2 . . . . . 1 . 1 . . . . . . 1 . 2 2 . Hauler 35 | . 1 . 6 . . . . . 4 5 7 . 2 . . . 2 3 . 2 2 1 Recycler 24 | . 1 1 2 . . . . . . 1 5 . 1 . . . 1 3 . 5 3 1 Mechanic 3 | . . . . . . . . . . . . . . . . . . 1 . 1 1 . Operator 13 | . . . 3 . . . . . . 2 3 . 3 . . . 1 . . . 1 . Watcher 32 | . 3 . 4 . . . . 1 1 1 6 . 2 1 . . 1 . 3 3 5 1 Swarmer 58 | . 5 . 9 2 . . 2 3 2 2 11 . 2 . 1 . 2 . 3 9 5 . Cutter 2 | . . . . . . . . . . . . . . . . . . 2 . . . . Saboteur 3 | . . . . . . . . . . . . . . . . . . . 3 . . . Grunt 172 | . 2 3 10 . . . . 4 11 15 14 . 9 4 5 . 16 17 2 30 24 6 Brawler 11 | . . . . . . . . . . 3 . . . 1 1 . 1 2 1 1 1 . Duelist 10 | . . . . . . . . 1 . . 2 . 1 . . . 1 3 . . 1 1 Protector 2 | . . . . . . . . . . . . . . . . . 1 . . . 1 . Sentry 77 | . . . 9 . . . . 1 5 8 6 . 5 . 1 . 2 8 8 9 9 6 Hunter 40 | . . . . . . 3 . 2 . 2 1 . 1 1 . . . 3 4 10 13 . Programmer 120 | . . . . . . . . . . . 9 . 8 3 . . 6 17 10 19 27 21 Heavy 2 | . . . . . . . . . . . . . . . . . . . . . 2 . Behemoth 3 | . . . . . . . . . . . . . . . . . . . . 1 2 . Thug 2 | . . . . . . . . . . 1 . . . . . . . . 1 . . . Best Kill Streak 14 | . 4 3 6 3 . 1 2 3 6 6 7 . 3 3 3 . 4 7 10 9 14 4 Combat Bots Only 10 | . 2 3 6 2 . 1 2 3 6 5 5 . 3 3 3 . 4 6 10 9 9 4 Max Kills in Single Turn 6 | . 1 1 3 1 . 1 2 1 3 2 2 . 2 1 1 . 2 3 3 4 6 2 Gunslinging 2 | . . . . . . . . . . . . . 1 . . . . . . 2 . . Exploded 3 | . . . 1 1 . . . . 1 1 . . . . . . . . 3 3 2 . Melee 1 | . . . . . . . . . . . . . . . . . . . . . 1 . Uniques/NPCs Destroyed . | . . . . . . . . . . . . . . . . . . . . . . . Combat | -11 -10 -10 -9 -9 -9 -8 -8 -8 -8 -8 -7 -7 -7 -6 -6 -6 -5 -4 -4 -3 -2 -1 -------- Run | Scr Mat Min Mat Min Exi Min Mat Gar Mat Sto Fac Was Fac Fac Low Low Fac Fac Arm Res Res Acc Damage Taken 27210 | . 154 28 602 52 . 123 . 446 330 901 1471 264 1086 469 132 . 1678 4914 2115 5094 6239 1112 Core 1904 | . 9 7 113 . . . . 131 35 238 101 70 67 9 3 . 85 429 173 169 265 . Absorbed by Shields 30 | . . . . . . . . . . . . . . . . . . . . 30 . . Redirected to Shielding 252 | . 23 2 31 . . . . . . . . . . . . . 23 . 90 . 83 . Core Remaining (%) 78 | 100 . 93 . . . 71 . . . 26 . . 66 . . 98 91 . 47 87 81 100 Volleys Fired 1195 | . 23 6 69 3 . 9 1 25 42 71 109 2 69 16 11 . 70 118 62 214 194 81 Largest 4 | . 3 3 3 1 . 3 3 3 3 3 3 2 3 4 4 . 4 4 4 4 4 4 Hottest 348 | . 140 140 186 30 . 174 187 206 206 195 210 135 243 280 280 . 336 348 327 176 204 289 Shots Fired 3945 | . 48 18 159 3 . 27 3 67 120 195 329 4 203 61 43 . 251 439 190 801 738 246 Gun 2797 | . 48 18 29 . . 18 2 26 68 175 306 4 203 23 9 . 91 112 94 781 624 166 Cannon 1119 | . . . 128 . . 9 1 41 49 17 23 . . 38 33 . 160 326 93 11 110 80 Launcher 24 | . . . 2 3 . . . . 3 3 . . . . 1 . . . 3 6 3 . Special 5 | . . . . . . . . . . . . . . . . . . 1 . 3 1 . Kinetic 1899 | . . . . . . . . 7 . 3 . . . . . . . . 148 792 724 225 Thermal 1942 | . 48 18 157 . . 27 3 60 117 189 329 4 203 61 42 . 227 387 39 . 10 21 Explosive 24 | . . . 2 3 . . . . 3 3 . . . . 1 . . . 3 6 3 . Electromagnetic 75 | . . . . . . . . . . . . . . . . . 24 51 . . . . Robot Hit Streak 56 | . 19 28 35 16 . 13 1 29 51 34 37 1 56 41 48 . 42 40 29 52 41 42 Robot Miss Streak 3 | . 1 . 3 . . 1 . 3 2 2 2 1 2 2 1 . 3 2 2 2 3 2 Penetration Max 2 | . . . . . . . . . . . . . . . . . . . . 2 2 2 Secondary Targets 43 | . . 1 . . . . . . . 5 4 . 5 . . . . 1 1 20 6 . Max Gunslinging Chain 2 | . . 1 . . . . . . . 1 1 . 1 . . . . 1 1 2 1 . Shots Hit Robots 3074 | . 34 17 112 2 . 23 1 53 97 152 246 2 156 49 33 . 178 345 130 667 595 182 Core Hits 1322 | . 19 7 56 4 . 8 2 26 42 72 106 . 63 20 14 . 73 128 63 251 293 75 Critical Kills 112 | . . . 1 . . . . 1 1 . . . . . 1 . 3 2 11 57 28 7 Critical Parts Destroyed 147 | . . . . . . . . . . . . . . . . . . . 11 87 42 7 Critical Strikes 395 | . 3 3 2 . . 3 1 3 7 14 11 . 12 . 1 . 6 7 35 180 88 19 Burn 64 | . 3 3 1 . . 3 1 2 6 14 11 . 12 . . . 3 5 . . . . Meltdown 9 | . . . 1 . . . . 1 1 . . . . . 1 . 3 2 . . . . Destroy 294 | . . . . . . . . . . . . . . . . . . . 26 179 74 15 Blast 27 | . . . . . . . . . . . . . . . . . . . 8 1 14 4 Sever 1 | . . . . . . . . . . . . . . . . . . . 1 . . . Melee Attacks 22 | . . . 3 . . . 5 1 9 . . . . . . . . . 2 2 . . Impact 2 | . . . . . . . . . . . . . . . . . . . . 2 . . Slashing 9 | . . . 1 . . . 5 1 . . . . . . . . . . 2 . . . Piercing . | . . . . . . . . . . . . . . . . . . . . . . . Sneak Attacks 10 | . . . 2 . . . . . 8 . . . . . . . . . . . . . Combat Hostiles . | . . . . . . . . . . . . . . . . . . . . . . . Follow-up Attacks 1 | . . . . . . . . . . . . . . . . . . . 1 . . . Damage Inflicted 81049 | . 438 228 2408 149 . 359 31 1057 1931 3351 5902 96 3555 1337 858 . 4855 11564 4175 13926 18364 6465 Guns 51312 | . 425 206 260 . . 214 31 345 901 2812 5423 96 3524 435 168 . 1613 2706 842 13040 13914 4357 Cannons 25189 | . . . 1971 . . 145 . 712 782 316 465 . . 867 619 . 3208 8219 2585 236 3054 2010 Explosions 3928 | . . . 109 149 . . . . 242 213 . . . . 71 . . 622 684 638 1200 . Melee 64 | . . . . . . . . . . . . . . . . . . . 64 . . . Ramming 556 | . 13 22 68 . . . . . 6 10 14 . 31 35 . . 34 17 . 12 196 98 Kinetic 38758 | . . . . . . . . 175 . 66 . . . . . . . . 2673 13276 16798 5770 Thermal 36765 | . 425 206 2231 . . 359 31 882 1683 3062 5888 96 3524 1302 787 . 4282 10396 844 . 170 597 Explosive 3216 | . . . 109 149 . . . . 242 213 . . . . 71 . . . 594 638 1200 . Electromagnetic 1690 | . . . . . . . . . . . . . . . . . 539 1151 . . . . Impact . | . . . . . . . . . . . . . . . . . . . . . . . Slashing 64 | . . . . . . . . . . . . . . . . . . . 64 . . . Piercing . | . . . . . . . . . . . . . . . . . . . . . . . Highest Corruption 25 | . . . . . . . . . . . 6 1 5 2 2 2 4 14 25 10 15 3 Average Corruption 4 | . . . . . . . . . . . 2 1 2 1 2 2 2 7 19 4 11 1 Corruption Purged 22 | . . . . . . . . . . . 5 . . . . . 4 6 . 7 . . Corruption Blocked . | . . . . . . . . . . . . . . . . . . . . . . . Effects 610 | . . . . . . . . . . . 93 6 56 21 29 2 26 61 103 63 124 26 Message Errors 153 | . . . . . . . . . . . 28 . 21 2 7 . 6 18 24 20 21 6 Matter Fused 124 | . . . . . . . . . . . 17 . 9 6 8 1 6 11 22 12 28 4 Heat Flow Errors 66 | . . . . . . . . . . . 8 1 4 2 2 . 2 7 17 3 18 2 Energy Discharges 74 | . . . . . . . . . . . 12 4 4 3 3 1 4 8 10 7 14 4 Parts Rejected 6 | . . . . . . . . . . . 1 . . . . . . 2 . . 3 . Data Loss (minor) 76 | . . . . . . . . . . . 14 . 9 4 5 . 3 9 12 7 8 5 Data Loss (major) 27 | . . . . . . . . . . . 4 1 5 1 1 . 1 2 5 4 1 2 Misfires 27 | . . . . . . . . . . . 6 . 3 1 1 . . 2 3 2 8 1 Alerts 16 | . . . . . . . . . . . 1 . . 2 2 . 3 . 4 3 1 . Misdirections 6 | . . . . . . . . . . . . . . . . . . 1 . . 5 . Weapon Failures 35 | . . . . . . . . . . . 2 . 1 . . . 1 1 6 5 17 2 Overload Shots 4 | . . . . . . . . . . . 1 . . . . . . 3 . . . . Overflow Damage 1040 | . . 11 10 . . . . . 63 32 34 . . 85 23 . 55 351 54 122 118 82 Projectiles 617 | . . . 10 . . . . . 7 . 34 . . 70 21 . 55 179 54 34 103 50 Explosions 351 | . . . . . . . . . 56 32 . . . . 2 . . 172 . 88 1 . Melee 72 | . . 11 . . . . . . . . . . . 15 . . . . . . 14 32 Knockbacks 68 | . . . 1 . . . . 9 . 1 1 . . . . . 1 1 11 3 23 17 Impact 9 | . . . 1 . . . . . . 1 1 . . . . . 1 1 . . 3 1 Kinetic 53 | . . . . . . . . 9 . . . . . . . . . . 11 3 16 14 Secondary 6 | . . . . . . . . . . . . . . . . . . . . . 4 2 Self-Inflicted Damage 490 | . . . 87 33 . . . . 7 . 139 . . . . . 78 105 41 . . . Shots 13 | . . . 2 1 . . . . 1 . 4 . . . . . 2 2 1 . . . Rammed 44 | . 2 3 9 . . . . . 1 4 2 . 4 1 . . 4 3 . 2 5 4 Targets Rammed 49 | . 2 3 9 . . . . . 1 4 2 . 4 1 . . 4 3 . 2 9 5 Kicked . | . . . . . . . . . . . . . . . . . . . . . . . Crushed 5 | . . . . . . . . . . . . . . . . . . . . . 4 1 Highest Temperature 883 | . 186 324 409 . . 261 90 566 638 883 445 189 385 293 203 . 585 618 444 224 574 634 Average Temperature 130 | . 59 126 69 . . 112 54 190 181 199 97 85 98 110 101 . 179 158 111 32 149 193 Received Heat Transfer 6534 | . 78 24 303 . . . . 207 225 585 471 . 477 90 57 . 778 1167 360 848 801 63 Effects 115 | . . . 1 . . . . 8 20 17 1 . . 2 . . 20 23 7 . 6 10 Shutdowns 29 | . . . 1 . . . . 1 2 1 . . . . . . 7 10 4 . 1 2 Energy Bleed 17 | . . . . . . . . 1 2 3 . . . 2 . . 2 1 . . 3 3 Interference 23 | . . . . . . . . . 7 2 . . . . . . 3 6 2 . 2 1 Matter Decay 12 | . . . . . . . . . 2 3 . . . . . . 2 3 . . . 2 Short Circuit 12 | . . . . . . . . . 2 4 1 . . . . . 1 2 1 . . 1 Damage (minor) 3 | . . . . . . . . . 1 1 . . . . . . . 1 . . . . Damage (major) 16 | . . . . . . . . 5 4 1 . . . . . . 5 . . . . 1 Damage (core) 3 | . . . . . . . . 1 . 2 . . . . . . . . . . . . Siege Activations . | . . . . . . . . . . . . . . . . . . . . . . . Robots Corrupted . | . . . . . . . . . . . . . . . . . . . . . . . Combat Hostiles . | . . . . . . . . . . . . . . . . . . . . . . . Parts Fried 11 | . . . . . . . . . . . . . . 4 . . 3 4 . . . . Impact Corruptions 4 | . . 1 . . . . . . . . . . . 1 . . . . . . 1 1 Robots Melted 25 | . . . 1 . . . . 3 2 3 2 . 3 . 2 . 4 5 . . . . Combat Hostiles 21 | . . . . . . . . 3 1 2 2 . 3 . 2 . 4 4 . . . . Parts Melted 193 | . 7 2 9 . . 3 1 6 13 17 27 . 27 5 3 . 17 46 6 2 . 2 Heat Transferred 63476 | . 1480 791 4403 . . 1073 148 1850 3737 6846 10217 148 6586 2088 1342 . 6461 14393 1025 . 222 666 Parts Sabotaged . | . . . . . . . . . . . . . . . . . . . . . . . Parts Stolen . | . . . . . . . . . . . . . . . . . . . . . . . Parts Stripped . | . . . . . . . . . . . . . . . . . . . . . . . Power Chain Reactions 1 | . . . . . . . . . . . . . . . . . . 1 . . . . Missiles Intercepted . | . . . . . . . . . . . . . . . . . . . . . . . Alert | -11 -10 -10 -9 -9 -9 -8 -8 -8 -8 -8 -7 -7 -7 -6 -6 -6 -5 -4 -4 -3 -2 -1 ------- Run | Scr Mat Min Mat Min Exi Min Mat Gar Mat Sto Fac Was Fac Fac Low Low Fac Fac Arm Res Res Acc Peak Influence 789 | . 182 70 223 116 . 45 55 381 197 271 259 22 235 101 . . 291 363 350 640 789 201 Initial 136 | . . . . 1 . . . 1 135 58 42 . . 10 . . 21 . 87 136 121 95 Average 88 | . 21 14 52 108 . 12 23 224 55 88 50 2 49 24 . . 65 109 96 256 260 66 Maximum Alert Level 3 | . . . 1 . . . . 1 . 1 1 . 1 . . . 1 1 1 2 3 1 Low Security (%) 85 | 100 100 100 96 100 . 100 100 32 100 96 93 100 96 100 . . 90 82 80 43 37 99 Level 1 11 | . . . 3 . . . . 67 . 3 6 . 3 . . . 9 17 19 27 45 . Level 2 3 | . . . . . . . . . . . . . . . . . . . . 28 15 . Level 3 . | . . . . . . . . . . . . . . . . . . . . . 2 . Level 4 . | . . . . . . . . . . . . . . . . . . . . . . . Level 5 . | . . . . . . . . . . . . . . . . . . . . . . . High Security . | . . . . . . . . . . . . . . . . . . . . . . . Max Security . | . . . . . . . . . . . . . . . . . . . . . . . Squads Dispatched 125 | . 2 1 3 . . . . . 3 7 18 . 13 4 . . 8 15 5 19 18 9 Investigation 11 | . 2 1 . . . . . . . . 2 . . . . . 1 1 . 2 2 . Extermination 55 | . . . . . . . . . . . 9 . 8 3 . . 3 7 5 5 6 9 Reinforcement 38 | . . . 3 . . . . . 3 2 5 . 4 1 . . 3 4 . 7 6 . Assault 6 | . . . . . . . . . . 2 . . 1 . . . 1 . . 1 1 . Garrison 15 | . . . . . . . . . . 3 2 . . . . . . 3 . 4 3 . Intercept . | . . . . . . . . . . . . . . . . . . . . . . . Searches Triggered . | . . . . . . . . . . . . . . . . . . . . . . . Construction Impeded 8 | . . . . . . . . . . . . . . . . . 2 1 . 2 3 . Haulers Reinforced 8 | . . . . . . . . . . . 3 . . . . . 1 2 . 2 . . Active Scanning Responses . | . . . . . . . . . . . . . . . . . . . . . . . Cargo Convoy Interrupts 1 | . . . . . . . . . . . . . . . . . . 1 . . . . Stealth | -11 -10 -10 -9 -9 -9 -8 -8 -8 -8 -8 -7 -7 -7 -6 -6 -6 -5 -4 -4 -3 -2 -1 --------- Run | Scr Mat Min Mat Min Exi Min Mat Gar Mat Sto Fac Was Fac Fac Low Low Fac Fac Arm Res Res Acc Distress Signals 33 | . . . . . . . 1 . 2 5 3 . . . . . 1 3 2 9 5 2 Communications Jammed . | . . . . . . . . . . . . . . . . . . . . . . . Distress Signals . | . . . . . . . . . . . . . . . . . . . . . . . Times Spotted 725 | . 12 5 50 2 . 3 3 11 27 50 66 6 46 15 8 . 40 89 48 101 107 36 Peak Tracking Total 11 | . 2 3 6 2 . 1 2 3 3 10 5 5 4 4 3 . 6 11 9 8 8 4 Tactical Retreats 20 | . . . 1 . . . . . . 3 . . 5 1 . . 3 3 1 . 3 . Traps | -11 -10 -10 -9 -9 -9 -8 -8 -8 -8 -8 -7 -7 -7 -6 -6 -6 -5 -4 -4 -3 -2 -1 ------- Run | Scr Mat Min Mat Min Exi Min Mat Gar Mat Sto Fac Was Fac Fac Low Low Fac Fac Arm Res Res Acc Traps Triggered 38 | . . . 2 . . . . 2 . 1 5 . 2 1 . . 3 4 3 7 5 3 Indirectly . | . . . . . . . . . . . . . . . . . . . . . . . Trap Hack Attempts 23 | . . . 13 . . . . 9 . . 1 . . . . . . . . . . . Triggered . | . . . . . . . . . . . . . . . . . . . . . . . Disarmed 1 | . . . . . . . . . . . 1 . . . . . . . . . . . Reprogrammed 6 | . 1 . 4 . . . . 1 . . . . . . . . . . . . . . Reused . | . . . . . . . . . . . . . . . . . . . . . . . Traps Extracted . | . . . . . . . . . . . . . . . . . . . . . . . Installed . | . . . . . . . . . . . . . . . . . . . . . . . Triggered . | . . . . . . . . . . . . . . . . . . . . . . . Machines | -11 -10 -10 -9 -9 -9 -8 -8 -8 -8 -8 -7 -7 -7 -6 -6 -6 -5 -4 -4 -3 -2 -1 ---------- Run | Scr Mat Min Mat Min Exi Min Mat Gar Mat Sto Fac Was Fac Fac Low Low Fac Fac Arm Res Res Acc Machines Disabled 56 | . . . 3 . . . . 2 . 3 13 . 3 . . . 9 6 9 4 4 . Max in Single Turn 5 | . . . 2 . . . . 1 . 1 5 . 1 . . . 2 2 2 1 1 . Garrison Access 12 | . . . . . . . . . . 1 2 . 2 1 . . 1 . . 2 1 2 Garrison Relay 2 | . . . . . . . . 2 . . . . . . . . . . . . . . Energy Cycler 1 | . . . . . . . . . . . . . . . . . . . 1 . . . Machines Sabotaged . | . . . . . . . . . . . . . . . . . . . . . . . Garrisons Compromised . | . . . . . . . . . . . . . . . . . . . . . . . Overloaded Fab Kills . | . . . . . . . . . . . . . . . . . . . . . . . Hacking | -11 -10 -10 -9 -9 -9 -8 -8 -8 -8 -8 -7 -7 -7 -6 -6 -6 -5 -4 -4 -3 -2 -1 --------- Run | Scr Mat Min Mat Min Exi Min Mat Gar Mat Sto Fac Was Fac Fac Low Low Fac Fac Arm Res Res Acc Machines Accessed 81 | . 7 3 9 . . . 2 . 2 11 9 . 8 2 1 . 2 1 3 7 5 9 Terminals 49 | . 6 2 6 . . . 1 . 2 8 2 . 4 1 . . . 1 3 4 3 6 Fabricators 4 | . . . . . . . . . . . 2 . 1 . . . . . . . 1 . Repair Stations 2 | . . . . . . . . . . . 1 . . . . . . . . 1 . . Recycling Units 8 | . 1 . 1 . . . . . . 2 1 . 2 . . . 1 . . . . . Scanalyzers 4 | . . . 2 . . . . . . . 1 . . . . . . . . . . 1 Garrison Access 12 | . . . . . . . 1 . . 1 2 . 1 1 . . 1 . . 2 1 2 Total Hacks 153 | . 20 6 21 . . . 3 . 3 20 17 . 15 3 1 . 2 2 5 12 11 12 Successful 99 | . 11 5 14 . . . 2 . 2 14 12 . 8 2 1 . 2 1 2 9 7 7 Failed 54 | . 9 1 7 . . . 1 . 1 6 5 . 7 1 . . . 1 3 3 4 5 Catastrophic 10 | . . 1 3 . . . 1 . . 1 1 . 1 . . . . . 1 . 1 . Database Lockouts . | . . . . . . . . . . . . . . . . . . . . . . . Manual 79 | . 16 2 14 . 1 . 1 . 2 7 2 . 8 2 . . . 2 4 4 6 8 Terminals 96 | . 19 5 14 . . . 1 . 3 16 2 . 8 2 . . . 2 5 5 6 8 Fabricators 12 | . . . . . . . . . . . 5 . 4 . . . . . . . 3 . Repair Stations 6 | . . . . . . . . . . . 2 . . . . . . . . 4 . . Recycling Units 8 | . 1 . 1 . . . . . . 2 1 . 2 . . . 1 . . . . . Scanalyzers 10 | . . . 6 . . . . . . . 3 . . . . . . . . . . 1 Garrison Access 19 | . . . . . . . 2 . . 2 4 . 1 1 . . 1 . . 3 2 3 Terminal Hacks 53 | . 10 5 7 . . . . . 2 10 1 . 4 1 1 . . 1 2 3 3 3 Record 1 | . . . . . . . . . 1 . . . . . . . . . . . . . Part Schematic 2 | . 1 . . . . . . . . . . . . . . . . . . . 1 . Prototype ID Bank 1 | . . 1 . . . . . . . . . . . . . . . . . . . . Open Door 7 | . . 1 . . . . . . . 2 . . . . 1 . . . 1 1 . 1 Branch Access Points 1 | . . . . . . . . . 1 . . . . . . . . . . . . . Terminal Index 2 | . 1 . 1 . . . . . . . . . . . . . . . . . . . Alert Level 1 | . . . . . . . . . . 1 . . . . . . . . . . . . Unreport Threat 22 | . 3 . 4 . . . . . . 3 . . 4 1 . . . 1 1 2 2 1 Locate Traps 2 | . 1 . . . . . . . . . . . . . . . . . . . . 1 Reprogram Traps 1 | . 1 . . . . . . . . . . . . . . . . . . . . . Dispatch Records 2 | . . 2 . . . . . . . . . . . . . . . . . . . . Recall Investigation 3 | . 1 . 1 . . . . . . . 1 . . . . . . . . . . . Recall Reinforcements 1 | . . . . . . . . . . 1 . . . . . . . . . . . . Hauler Manifests 1 | . . . . . . . . . . 1 . . . . . . . . . . . . Registered Components 1 | . . . . . . . . . . 1 . . . . . . . . . . . . Registered Prototypes 1 | . 1 . . . . . . . . . . . . . . . . . . . . . Zone Layout 4 | . 1 1 1 . . . . . . 1 . . . . . . . . . . . . Fabricator Hacks 7 | . . . . . . . . . . . 4 . 1 . . . . . . . 2 . Load Schematic 4 | . . . . . . . . . . . 2 . 1 . . . . . . . 1 . Build 3 | . . . . . . . . . . . 2 . . . . . . . . . 1 . Repair Station Hacks 2 | . . . . . . . . . . . . . . . . . . . . 2 . . Scan Component 2 | . . . . . . . . . . . . . . . . . . . . 2 . . Recycling Unit Hacks 7 | . . . 1 . . . . . . 2 1 . 2 . . . 1 . . . . . Report Inventory 1 | . . . 1 . . . . . . . . . . . . . . . . . . . Retrieve Components 6 | . . . . . . . . . . 2 1 . 2 . . . 1 . . . . . Scanalyzer 8 | . . . 6 . . . . . . . 2 . . . . . . . . . . . Insert Component 5 | . . . 4 . . . . . . . 1 . . . . . . . . . . . Analyze 3 | . . . 2 . . . . . . . 1 . . . . . . . . . . . Garrison Access Hacks 19 | . . . . . . . 2 . . 2 4 . 1 1 . . 1 . . 3 2 3 Unlock Access 1 | . . . . . . . 1 . . . . . . . . . . . . . . . Seal Access 10 | . . . . . . . . . . 1 2 . 1 1 . . . . . 2 1 2 Coupler Status 8 | . . . . . . . 1 . . 1 2 . . . . . 1 . . 1 1 1 Unauthorized Hacks 3 | . 1 . . . . . . . . . . . . . . . . . . 1 . 1 Terminals 1 | . . . . . . . . . . . . . . . . . . . . 1 . . Disrupt 1 | . . . . . . . . . . . . . . . . . . . . 1 . . Fabricators . | . . . . . . . . . . . . . . . . . . . . . . . Repair Stations . | . . . . . . . . . . . . . . . . . . . . . . . Recycling Units 1 | . 1 . . . . . . . . . . . . . . . . . . . . . Tunnel 1 | . 1 . . . . . . . . . . . . . . . . . . . . . Scanalyzers 1 | . . . . . . . . . . . . . . . . . . . . . . 1 Researchers 1 | . . . . . . . . . . . . . . . . . . . . . . 1 Garrison Access . | . . . . . . . . . . . . . . . . . . . . . . . Data Cores Recovered 4 | . . . . . . . . . . . 1 . 2 . . . 1 . . . . . Used . | . . . . . . . . . . . . . . . . . . . . . . . Hacking Detections 50 | . 6 2 5 . . . 1 . 1 5 5 . 6 1 . . 1 1 2 4 3 7 Full Trace Events 8 | . 2 1 . . . . . . . 1 1 . . . . . . . . 1 2 . Feedback Events . | . . . . . . . . . . . . . . . . . . . . . . . Feedback Blocked . | . . . . . . . . . . . . . . . . . . . . . . . Robot Schematics Acquired . | . . . . . . . . . . . . . . . . . . . . . . . Robots Built . | . . . . . . . . . . . . . . . . . . . . . . . Authchips . | . . . . . . . . . . . . . . . . . . . . . . . Time . | . . . . . . . . . . . . . . . . . . . . . . . Total Robot Build Rating . | . . . . . . . . . . . . . . . . . . . . . . . Part Schematics Acquired 5 | . 1 . 2 . . . . . . . 1 . . . . . . . . . 1 . Parts Built 3 | . . . . . . . . . . . 2 . . . . . . . . . 1 . Authchips . | . . . . . . . . . . . . . . . . . . . . . . . Time 123 | . . . . . . . . . . . 98 . . . . . . . . . 25 . Total Part Build Rating 5 | . . . . . . . . . . . 4 . . . . . . . . . 1 . Parts Repaired . | . . . . . . . . . . . . . . . . . . . . . . . Time . | . . . . . . . . . . . . . . . . . . . . . . . Parts Recycled . | . . . . . . . . . . . . . . . . . . . . . . . Recycled Matter . | . . . . . . . . . . . . . . . . . . . . . . . Retrieved Matter . | . . . . . . . . . . . . . . . . . . . . . . . Retrieved Components 48 | . . . . . . . . . . 18 10 . 10 . . . 10 . . . . . Parts Scanalyzed 3 | . . . 2 . . . . . . . 1 . . . . . . . . . . . Part Schematics Acquired 3 | . . . 2 . . . . . . . 1 . . . . . . . . . . . Parts Damaged 1 | . . . 1 . . . . . . . . . . . . . . . . . . . Bothacking | -11 -10 -10 -9 -9 -9 -8 -8 -8 -8 -8 -7 -7 -7 -6 -6 -6 -5 -4 -4 -3 -2 -1 ------------ Run | Scr Mat Min Mat Min Exi Min Mat Gar Mat Sto Fac Was Fac Fac Low Low Fac Fac Arm Res Res Acc Used RIF Installer 1 | . . . . . . . . 1 . . . . . . . . . . . . . . Robots Hacked 4 | . . . . . . . . . 2 . . . . . . . . . . 2 . . Non-combat 2 | . . . . . . . . . 2 . . . . . . . . . . . . . Combat 2 | . . . . . . . . . . . . . . . . . . . . 2 . . Robot Hacks Applied 10 | . . . . . . . . . 8 . . . . . . . . . . 2 . . check_alert 3 | . . . . . . . . . 3 . . . . . . . . . . . . . purge_threat 2 | . . . . . . . . . 2 . . . . . . . . . . . . . find_terminals 1 | . . . . . . . . . 1 . . . . . . . . . . . . . locate_traps 1 | . . . . . . . . . 1 . . . . . . . . . . . . . summon_haulers 1 | . . . . . . . . . 1 . . . . . . . . . . . . . disable_weapons 1 | . . . . . . . . . . . . . . . . . . . . 1 . . formatsys_high 1 | . . . . . . . . . . . . . . . . . . . . 1 . . Relay Couplers Released 24 | . . . . . . . . 8 . . 4 . 3 . . . 2 . . 3 4 . Machine Destruction 13 | . . . . . . . . 8 . . . . 3 . . . 2 . . . . . Programmers 11 | . . . . . . . . . . . 4 . . . . . . . . 3 4 . Attached 2 | . . . . . . . . . 1 . . . . . . . . . . 1 . . Fabnet Peak Effective % . | . . . . . . . . . . . . . . . . . . . . . . . Robots Rewired 1 | . . . . . . . . . . . . . . . . . . 1 . . . . Allies Hacked 2 | . . . . . . . . . . . 1 . . . . . . . 1 . . . Hacks Repelled . | . . . . . . . . . . . . . . . . . . . . . . . Allies | -11 -10 -10 -9 -9 -9 -8 -8 -8 -8 -8 -7 -7 -7 -6 -6 -6 -5 -4 -4 -3 -2 -1 -------- Run | Scr Mat Min Mat Min Exi Min Mat Gar Mat Sto Fac Was Fac Fac Low Low Fac Fac Arm Res Res Acc Total Allies 38 | . . 3 . . . . . . . 12 . 18 . . . . . 1 3 1 . . Largest Group 18 | . . 3 2 . . . . . . 10 10 18 7 . . . . . 3 1 . . Highest-Rated Group 444 | . . 40 24 . . . . . . 173 170 444 200 . . . . . 138 56 . . Highest-Rated Ally 56 | . . 16 16 . . . . . . 31 29 35 35 . . . . . 46 56 . . Total Orders 3 | . . . . . . . . . . . . . . . . . . 3 . . . . FOLLOW 1 | . . . . . . . . . . . . . . . . . . 1 . . . . EXPLORE 2 | . . . . . . . . . . . . . . . . . . 2 . . . . Ally Attacks 352 | . . 12 4 . . . . . . 29 62 145 52 . . . . 17 28 3 . . Total Damage 9036 | . . 148 18 . . . . . . 326 882 6155 852 . . . . 41 549 65 . . Kills 41 | . . 2 1 . . . . . . 3 10 14 7 . . . . . 3 1 . . Allies Corrupted . | . . . . . . . . . . . . . . . . . . . . . . . Allies Melted . | . . . . . . . . . . . . . . . . . . . . . . . Intel | -11 -10 -10 -9 -9 -9 -8 -8 -8 -8 -8 -7 -7 -7 -6 -6 -6 -5 -4 -4 -3 -2 -1 ------- Run | Scr Mat Min Mat Min Exi Min Mat Gar Mat Sto Fac Was Fac Fac Low Low Fac Fac Arm Res Res Acc Robot Analysis Total . | . . . . . . . . . . . . . . . . . . . . . . . Derelict Logs Recovered 3 | . . 1 . . . . . . . . . . . . 1 1 . . . . . . Drone Launches 17 | . . . . . . . . . . . . . . . . . . 17 . . . . Drone Recoveries 1 | . . . . . . . . . . . . . . . . . . 1 . . . . Exploration | -11 -10 -10 -9 -9 -9 -8 -8 -8 -8 -8 -7 -7 -7 -6 -6 -6 -5 -4 -4 -3 -2 -1 ------------- Run | Scr Mat Min Mat Min Exi Min Mat Gar Mat Sto Fac Was Fac Fac Low Low Fac Fac Arm Res Res Acc Turns Passed 55564 | 79 2440 2033 4771 90 1143 1880 689 1357 1871 1981 7026 1355 4996 2057 1721 224 3402 2784 2253 3957 3801 3654 Spaces Moved 21879 | 55 775 596 1341 26 345 555 265 464 620 669 2470 687 2690 881 679 89 1158 860 908 1833 1927 1986 Core 436 | 22 . . . . . . . . . . . 412 . . . . . 2 . . . . Treads 19904 | 33 775 596 1341 26 345 555 265 464 620 669 2470 60 2015 881 679 89 1158 699 418 1833 1927 1986 Legs 1257 | . . . . . . . . . . . . 215 675 . . . . . 367 . . . Wheels 282 | . . . . . . . . . . . . . . . . . . 159 123 . . . Hover . | . . . . . . . . . . . . . . . . . . . . . . . Flight . | . . . . . . . . . . . . . . . . . . . . . . . Fastest Speed 50 | 50 160 320 320 330 330 330 250 250 247 242 240 50 125 167 247 247 240 145 160 156 150 153 Average Speed 222 | 116 293 320 331 330 330 330 250 250 248 248 245 183 172 223 247 247 248 244 212 160 160 155 Slowest Speed 2350 | 160 320 320 560 330 330 330 250 250 250 325 250 500 246 247 247 247 405 2350 265 166 250 237 Overloaded Moves . | . . . . . . . . . . . . . . . . . . . . . . . Propulsion Burnouts . | . . . . . . . . . . . . . . . . . . . . . . . Robots Hopped . | . . . . . . . . . . . . . . . . . . . . . . . Cave-ins Triggered . | . . . . . . . . . . . . . . . . . . . . . . . Exploration Rate (%) 51 | 4 80 98 89 12 77 91 20 53 51 80 51 97 56 25 74 15 28 21 44 41 38 49 Regions Visited 22 Branch Regions 8 Pre-discovered Areas 1 | . 1 . . . . . . . . . . . . . . . . . . . . . Known Exits Taken 19 | 1 1 1 1 1 1 1 1 . 1 1 . . 1 1 1 1 1 1 1 1 1 . Unknown Exits Taken . | . . . . . . . . . . . . . . . . . . . . . . . Scrap Searched 6 | . . 1 . . . . . . . . . . . . 3 2 . . . . . . Spaces Dug 46 | . . . 1 . . . 5 . 14 . . . . . . . 2 . 1 7 . 16 Terrain Destroyed 762 | . . . 51 22 . . 5 . 40 36 70 . . 3 14 . 72 62 92 91 165 39 Melee 8 | . . . 1 . . . 5 . . . . . . . . . . . . 2 . . Projectile 234 | . . . . . . . . . 11 10 1 . . 3 5 . 17 33 24 27 64 39 AOE 496 | . . . 50 22 . . . . 29 26 69 . . . 9 . 55 29 66 47 94 . Terrain Rammed . | . . . . . . . . . . . . . . . . . . . . . . . Walls Destroyed . | . . . . . . . . . . . . . . . . . . . . . . . Machines Disabled . | . . . . . . . . . . . . . . . . . . . . . . . Actions | -11 -10 -10 -9 -9 -9 -8 -8 -8 -8 -8 -7 -7 -7 -6 -6 -6 -5 -4 -4 -3 -2 -1 --------- Run | Scr Mat Min Mat Min Exi Min Mat Gar Mat Sto Fac Was Fac Fac Low Low Fac Fac Arm Res Res Acc Total 26705 | 68 894 703 1507 29 353 585 281 608 872 862 3243 775 2892 945 702 94 1568 1327 1141 2476 2327 2453 Wait 2339 | . 84 98 7 . . 19 . 90 155 75 550 51 41 18 . . 252 228 15 263 86 307 Move 21857 | 54 774 595 1340 25 344 554 265 462 619 668 2470 686 2689 880 678 88 1157 859 907 1832 1926 1985 Hop . | . . . . . . . . . . . . . . . . . . . . . . . Pick Up 343 | 7 5 1 30 . 1 . 3 3 12 8 26 3 27 12 7 2 25 34 52 39 29 17 Fast Attach 128 | 4 2 . 1 . 2 1 1 . . 5 14 18 10 1 . . 3 12 10 20 13 11 Attach 173 | 3 1 . 6 . 1 . 2 2 2 2 2 4 7 4 . . 19 38 25 27 21 7 Detach 5 | . . . . . 1 . . . . . . . . . . . . . 2 2 . . Swap 206 | . . . 15 1 . 1 1 9 18 12 21 1 15 6 5 2 14 15 24 22 14 10 Drop 361 | . 3 . 14 . 4 1 3 3 14 17 48 10 30 7 1 2 24 20 43 53 34 30 Fire 1195 | . 23 6 69 3 . 9 1 25 42 71 109 2 69 16 11 . 70 118 62 214 194 81 Melee 21 | . . . 3 . . . 5 1 9 . . . . . . . . . 1 2 . . Ram 1 | . . . . . . . . . . . . . . . . . . . . . 1 . Kick . | . . . . . . . . . . . . . . . . . . . . . . . Crush 49 | . 2 3 9 . . . . . 1 4 2 . 4 1 . . 4 3 . 2 9 5 Escape Stasis 4 | . . . . . . . . 4 . . . . . . . . . . . . . . Rewire . | . . . . . . . . . . . . . . . . . . . . . . . Trap 23 | . . . 13 . . . . 9 . . 1 . . . . . . . . . . . Miscellaneous . | . . . . . . . . . . . . . . . . . . . . . . . Route ------- -11/Scrapyard -10/Materials (discovered 2 exits: *Mat / *Min) -10/Mines (discovered 2 exits: *Mat x2) -9/Materials (discovered 4 exits: *Mat x3 / *Min) -9/Mines -9/Exiles -8/Mines -8/Materials (discovered 2 exits: *Sto / Gar) -8/Garrison -8/Materials (discovered 2 exits: *Fac / *Sto) -8/Storage -7/Factory (discovered 5 exits: *Fac x4 / *Low) -7/Waste -7/Factory (discovered 5 exits: *Fac x4 / *Low) -6/Factory -6/Lower Caves -6/Lower Caves -5/Factory (discovered 4 exits: *Fac x2 / *Upp x2) -4/Factory (discovered 2 exits: *Upp / *Arm) -4/Armory -3/Research (discovered 2 exits: *Res / *Qua) -2/Research (discovered 2 exits: *Acc / *Tes) -1/Access (discovered 2 exits: *Sur / Com) To Epsilon Eridani History --------- Turn | Location | Event 6 | -11/Scrapyard | Identified exit to Materials 6 | -11/Scrapyard | Discovered exit to Materials (range 15) 80 | -11/Scrapyard | Entered Materials 80 | -10/Materials | Evolved 1 slot: Weapon x1 309 | -10/Materials | Build established: Hacker-Mutant 727 | -10/Materials | Identified exit to Mines 727 | -10/Materials | Discovered exit to Mines (range 14) 875 | -10/Materials | Identified exit to Materials 875 | -10/Materials | Discovered exit to Materials (range 13) 1583 | -10/Materials | Build established: Hacker-Tank 2520 | -10/Materials | Entered Mines 2532 | -10/Mines | Met a Derelict bent on vengeance 3100 | -10/Mines | Learned Materials garrison access intel 3218 | -10/Mines | Assisted by bots powering up and referring to "LRC-V3" 3619 | -10/Mines | Found the Drone Emporium 3634 | -10/Mines | Found Prototype Device 3824 | -10/Mines | Discovered exit to Materials (range 10) 4213 | -10/Mines | Found a hidden stash of uninstalled traps 4274 | -10/Mines | Discovered exit to Materials (range 15) 4553 | -10/Mines | Entered Materials 4553 | -9/Materials | Accompanied by 2 allies 4553 | -9/Materials | Evolved 2 slots: Utility x2 4627 | -9/Materials | Identified Bomb Drone Bay 4850 | -9/Materials | Build established: Hacker-Gunner 5213 | -9/Materials | Build established: Hacker-Tank 5619 | -9/Materials | Build established: Hacker-Mutant 6562 | -9/Materials | Identified exit to Materials 6562 | -9/Materials | Discovered exit to Materials (range 15) 7673 | -9/Materials | Discovered exit to Materials (range 15) 8885 | -9/Materials | Discovered exit to Materials (range 6) 9304 | -9/Materials | Identified exit to Mines 9304 | -9/Materials | Discovered exit to Mines (range 7) 9324 | -9/Materials | Entered Mines 9401 | -9/Mines | Deemed a non-threat by the Exiles lab entrance 9401 | -9/Mines | Identified exit to Exiles 9401 | -9/Mines | Discovered exit to Exiles (range 5) 9414 | -9/Mines | Entered Exiles 9497 | -9/Exiles | Met 8R-AWN 9550 | -9/Exiles | Met EX-HEX 9649 | -9/Exiles | Met EX-BIN 9695 | -9/Exiles | Aligned with FarCom system 9698 | -9/Exiles | Given EX-Vault access code 9781 | -9/Exiles | Opened EX-Vault 9798 | -9/Exiles | Found Prototype Energy Cannon 9800 | -9/Exiles | Identified YOLO Cannon 9897 | -9/Exiles | Warned to stay clear of 0b10 Research branches 9990 | -9/Exiles | Met EX-DEC 10094 | -9/Exiles | Build established: Hacker-Tank 10185 | -9/Exiles | Visited The Gauntlet 10511 | -9/Exiles | Identified exit to Mines 10511 | -9/Exiles | Discovered exit to Mines (range 14) 10557 | -9/Exiles | Left Exiles lab with YOLO Cannon 10557 | -9/Exiles | Entered Mines 10625 | -8/Mines | Discovered exit to Materials (range 6) 10853 | -8/Mines | Build established: Hacker-Skirmisher 12437 | -8/Mines | Entered Materials 12437 | -8/Materials | Evolved 2 slots: Propulsion x2 12438 | -8/Materials | Loaded intel: 1 garrison access location 12444 | -8/Materials | Identified exit to Storage 12444 | -8/Materials | Discovered exit to Storage (range 12) 12995 | -8/Materials | Build established: Hacker-Mutant 13126 | -8/Materials | Identified exit to Garrison 13126 | -8/Materials | Entered Garrison 13139 | -8/Garrison | Installed Relay Interface Framework 13458 | -8/Garrison | Triggered checkpoint 13568 | -8/Garrison | Garrison Relay disabled 13682 | -8/Garrison | Triggered checkpoint 13767 | -8/Garrison | Build established: Hacker-Skirmisher 13848 | -8/Garrison | Identified exit to Materials 13848 | -8/Garrison | Discovered exit to Materials (range 13) 13980 | -8/Garrison | Triggered checkpoint 14112 | -8/Garrison | Garrison Relay disabled 14140 | -8/Garrison | Triggered checkpoint 14318 | -8/Garrison | Triggered checkpoint 14483 | -8/Garrison | Entered Materials 15519 | -8/Materials | Identified exit to Factory 15519 | -8/Materials | Discovered exit to Factory (range 16) 16354 | -8/Materials | Entered Storage 16997 | -8/Storage | Garrison activated, responded to threat 17845 | -8/Storage | Met a pair of Derelict thieves 17894 | -8/Storage | Core integrity fell below 50% 18100 | -8/Storage | Assisted by bots powering up and referring to "LRC-V3" 18276 | -8/Storage | Discovered exit to Factory (range 13) 18335 | -8/Storage | Entered Factory 18335 | -7/Factory | Accompanied by 10 allies 18335 | -7/Factory | Evolved 2 slots: Utility x2 18479 | -7/Factory | Identified exit to Factory 18479 | -7/Factory | Discovered exit to Factory (range 15) 18624 | -7/Factory | Build established: Commander-Skirmisher 18681 | -7/Factory | Fabricated Adv. Beam Cannon (x1) 18714 | -7/Factory | Garrison activated, responded to threat 18806 | -7/Factory | Identified exit to Lower Caves 18806 | -7/Factory | Discovered exit to Lower Caves (range 13) 19058 | -7/Factory | Build established: Scavenger-Skirmisher 19837 | -7/Factory | Fabricated Adv. Beam Cannon (x1) 19882 | -7/Factory | Discovered exit to Factory (range 15) 21833 | -7/Factory | Build established: Hacker-Skirmisher 22835 | -7/Factory | Discovered exit to Factory (range 10) 23152 | -7/Factory | Discovered exit to Factory (range 8) 24689 | -7/Factory | Build established: Hacker-Tank 25361 | -7/Factory | Sucked down chute 25361 | -7/Factory | Entered Waste 25394 | -7/Waste | Spotted C-40 Crusher 25429 | -7/Waste | Spotted C-40 Crusher 25448 | -7/Waste | Crushed by Compactor (1 part destroyed, 1 dropped) 25451 | -7/Waste | Crushed by Compactor (1 part destroyed, 2 dropped) 25454 | -7/Waste | Crushed by Compactor (1 part destroyed, 1 dropped) 25457 | -7/Waste | Crushed by Compactor (1 part destroyed, 1 dropped) 25457 | -7/Waste | Crushed by Compactor (1 part destroyed, 1 dropped) 25460 | -7/Waste | Crushed by Compactor (1 part destroyed, 1 dropped) 25460 | -7/Waste | Crushed by Compactor (1 part destroyed, 1 dropped) 25468 | -7/Waste | Spotted C-40 Crusher 25469 | -7/Waste | Spotted C-40 Crusher 25474 | -7/Waste | Spotted C-40 Crusher 25485 | -7/Waste | Warlord forces began an assault 25491 | -7/Waste | Lost 7 parts (4n2u1w) 25501 | -7/Waste | Allies destroyed C-40 Crusher 25506 | -7/Waste | Allies destroyed C-40 Crusher 25512 | -7/Waste | Allies destroyed C-40 Crusher 25513 | -7/Waste | Allies destroyed C-40 Crusher 25524 | -7/Waste | Allies destroyed C-40 Crusher 25575 | -7/Waste | Spotted C-40 Crusher 25587 | -7/Waste | Allies destroyed C-40 Crusher 25739 | -7/Waste | Build established: Hacker-Mutant 25951 | -7/Waste | Identified exit to Factory 25951 | -7/Waste | Discovered exit to Factory (range 11) 26716 | -7/Waste | Entered Factory 26716 | -7/Factory | Accompanied by 7 allies 26762 | -7/Factory | Build established: Hacker-Tank 27442 | -7/Factory | Discovered exit to Factory (range 9) 27736 | -7/Factory | Discovered exit to Lower Caves (range 7) 27800 | -7/Factory | P-60 Hacker assimilated allied 9G-2EM(m) 29789 | -7/Factory | Build established: Hacker-Skirmisher 30757 | -7/Factory | Discovered exit to Factory (range 8) 30853 | -7/Factory | Discovered exit to Factory (range 10) 31024 | -7/Factory | Discovered exit to Factory (range 6) 31394 | -7/Factory | Build established: Hacker-Tank 31712 | -7/Factory | Entered another Factory area 31712 | -6/Factory | Evolved 2 slots: Utility x1, Weapon x1 31734 | -6/Factory | Build established: Hacker-Skirmisher 32198 | -6/Factory | Spotted B-75 Beast 33532 | -6/Factory | Identified exit to Lower Caves 33532 | -6/Factory | Discovered exit to Lower Caves (range 13) 33769 | -6/Factory | Entered Lower Caves 34062 | -6/Lower Caves | Build established: Hacker-Tank 34323 | -6/Lower Caves | Spotted B-75 Beast 34777 | -6/Lower Caves | Attracted the attention of an 0b10 checkpoint 34957 | -6/Lower Caves | Encountered a Warlord checkpoint 35308 | -6/Lower Caves | Identified exit to Lower Caves 35308 | -6/Lower Caves | Discovered exit to Lower Caves (range 11) 35490 | -6/Lower Caves | Entered another Lower Caves area 35607 | -6/Lower Caves | Learned 4 Factory zone layouts 35682 | -6/Lower Caves | Identified exit to Factory 35682 | -6/Lower Caves | Discovered exit to Factory (range 13) 35714 | -6/Lower Caves | Entered Factory 35714 | -5/Factory | Evolved 2 slots: Power x1, Utility x1 35715 | -5/Factory | Identified exit to Factory 36108 | -5/Factory | Identified exit to Upper Caves 36108 | -5/Factory | Discovered exit to Upper Caves (range 10) 36784 | -5/Factory | Build established: Scavenger-Tank 36983 | -5/Factory | Discovered exit to Upper Caves (range 10) 39077 | -5/Factory | Discovered exit to Factory (range 14) 39116 | -5/Factory | Entered another Factory area 39116 | -4/Factory | Evolved 2 slots: Utility x2 39145 | -4/Factory | Build established: Scavenger-Mutant 39512 | -4/Factory | Identified exit to Upper Caves 39512 | -4/Factory | Discovered exit to Upper Caves (range 14) 39593 | -4/Factory | Build established: Scavenger-Tank 40722 | -4/Factory | Lost 4 parts (1n2u1w) 40861 | -4/Factory | Spotted Executioner 40862 | -4/Factory | Cargo convoy interrupted 40916 | -4/Factory | Garrison activated, responded to threat 41023 | -4/Factory | Identified exit to Armory 41023 | -4/Factory | Discovered exit to Armory (range 21) 41051 | -4/Factory | Build established: Scavenger-Skirmisher 41061 | -4/Factory | Lost 3 parts (1u2w) 41131 | -4/Factory | Lost 3 parts (1p2u) 41216 | -4/Factory | Lost 3 parts (1p1n1u) 41240 | -4/Factory | System corruption reached 10% 41861 | -4/Factory | Lost 9 parts (3n5u1w) 41900 | -4/Factory | Entered Armory 42903 | -4/Armory | Build established: Hacker-Tank 43011 | -4/Armory | Allied Derelicts emerged from ambush trap array 43949 | -4/Armory | Core integrity fell below 50% 43985 | -4/Armory | Destroyed 10 combat bots 43985 | -4/Armory | Lost 3 parts (3u) 44141 | -4/Armory | Identified exit to Research 44141 | -4/Armory | Discovered exit to Research (range 3) 44153 | -4/Armory | Entered Research 44153 | -3/Research | Evolved 2 slots: Propulsion x2 44258 | -3/Research | Spotted B-86 Titan 44414 | -3/Research | Destroyed B-86 Titan 44533 | -3/Research | Found Hvy. Reflective Plating 44625 | -3/Research | Found Hvy. Reflective Plating 44759 | -3/Research | Build established: Hacker-Gunner 45147 | -3/Research | Lost 3 parts (1u2w) 45156 | -3/Research | Destroyed 9 combat bots 45354 | -3/Research | Destroyed 7 combat bots 45582 | -3/Research | Destroyed 7 combat bots 45653 | -3/Research | First assault squad dispatched 45659 | -3/Research | Build established: Scavenger-Gunner 46170 | -3/Research | Identified exit to Quarantine 46170 | -3/Research | Discovered exit to Quarantine (range 9) 47966 | -3/Research | Garrison activated, responded to threat 48040 | -3/Research | Identified exit to Research 48040 | -3/Research | Discovered exit to Research (range 16) 48065 | -3/Research | System corruption reached 10% 48110 | -3/Research | Entered another Research area 48110 | -2/Research | Evolved 2 slots: Utility x2 48380 | -2/Research | Garrison activated, responded to threat 48442 | -2/Research | Spotted B-90 Cyclops 48463 | -2/Research | Destroyed B-90 Cyclops 49469 | -2/Research | Fabricated Huge Storage Unit (x1) 49545 | -2/Research | Destroyed 7 combat bots 49558 | -2/Research | Spotted B-90 Cyclops 49584 | -2/Research | Identified exit to Testing 49584 | -2/Research | Discovered exit to Testing (range 16) 49607 | -2/Research | Destroyed B-90 Cyclops 49717 | -2/Research | System corruption reached 10% 50200 | -2/Research | Destroyed 9 combat bots 50860 | -2/Research | First assault squad dispatched 50918 | -2/Research | Destroyed 7 combat bots 51782 | -2/Research | Identified exit to Access 51782 | -2/Research | Discovered exit to Access (range 6) 51911 | -2/Research | Entered Access 51911 | -1/Access | Evolved 2 slots: Utility x2 54624 | -1/Access | Identified exit to Command 54624 | -1/Access | Discovered exit to Command (range 23) 55517 | -1/Access | Identified exit to Surface 55517 | -1/Access | Discovered exit to Surface (range 24) 55565 | *** | Escaped! Last Messages --------------- 55460_ Slug penetrates Wall. 55460_ Slug penetrates Y-72 Warden. 55460_ Slug penetrates Wall. 55461_ Penetrated by Slug. 55462_ Slug penetrates Y-72 Warden. 55462_ Slug penetrates Wall. 55462_ Y-72 Warden destroyed. 55482_ Acquired 7 matter. 55487_ Acquired 6 matter. 55490_ Acquired 83 matter. 55493_ Acquired Adv. Cryofiber Web. 55511_ ALERT: Rogue bot located, Programmers report to Access Zone 9A. 55517_ EXIT=FOUND: SURFACE 55521_ System corrupted: Energy discharge (-204). 55553_ Connecting with Terminal... >>Open(Door) Sealed Barrier opened. 55554_ U-05 Engineer builds a Wall. 55557_ The Access Shell folds into the floor. [Achievement: Punisher] Map ----- +----------------------------------------------------+ | ??????????????????????????????????????????? ?? #? | | ?????????????????????????????????????? ?? ?? ? ?? | | ???????????????????????????????????"?"?? ? ? #? | | ??????????????????????? ??????????#??? ???? ? # | | ????????????????????? ?????? ?? ?##?# ? ? ??# | | ????????????????+???????? ???? #?##? ?? ? ???# | | ????????????????????? ?? ??? ##### ? ? ?## | | ?????????????? ?????????????" ??#??#?? #######?## | | ???????????????????#???? ??? ???###?? ########## | | ?????????????????? ?????? ? ? ? ?#### ###?###### | | ????????????????? ???? ?? ?? ?? ##### ########## | | ?????????"???? ????#??????#?########## ####### | | ??????????? ??? ?? ?? ? ???? ? | | ???????????????????? ? ? ?? [ | | ?????????#???#????##?#????###??#?##?## ####### | | ??????????????##??#???##???##?##?##### ######## | | ?????????????#?????#?#?#####??######## ######## | | ?????????????#???#??#?##???#????###### ###?#### | | ????? ???????##???#?#??##?##??##?##### ####?### | | ????????????????????#?##?#???######### ######## | | ???? ??#???????##??########## ####### ###?#### | | ????????????? ? ?""" ######## | | ?????????#? ??BB??""" ## # | | ?????? #???? ?BB???"" ## # | | ????????? ??? ? ""?" ## # | | ?????? ??????? ""?" "@ ## = # | | ??? ???????? ?????"?" "" ## # | | ???????? ??????? ??"" ;# + | | ??????????????BB ""?" ## # | | ?????????? ?? BB?"?"" """ """ ## # | | #????? ??????? ??""" """T""" ## !!! # | | ??????? ??#?????#?#?########## ####### ## !!= # | | ?????????##?##?##???#?######?######### ## !! # | | ?# ???????????##?#??#?#?##?#?######### ## !# | | ?????????#?????###??#? ? ?""""" # ######## | | ?#?? ??????#??##?#####?? ""T"" # ######## | | ##? ? ? ##?? ?# ? ? # ######## | | #? ?? ## ?? # " ? # ######## | | ## ? ??? ## # ?"" # ######## | | ## ?## ? ? # """ # ######## | | + ? ## ? ?# " # #####?## | | ## ?? ## " # # ######## | | ## ## ? ?""" # ? # ######## | | ## #? """"" # # ######## | | ## ? ## """"" ###?#######+#+### ######## | | ## ## """" ### | | ########### " # | | #########?# # #####+########### | | ########### ### ##= ! # | | ########### ### ## ]# | +----------------------------------------------------+ Best States ------------- Heat Dissipation 119 Coolant Potential 80 Energy Generation 49 Energy Capacity 600 Matter Stores 450 Matter Capacity 450 Sight Range 16 Terrain Scan Range 24 Terrain Scan Density 210 Jamming Range 14 Power Amplification 40 Base Temperature (-) 200 Armor Coverage 1200 Resistance: KI 35 Resistance: TH 60 Resistance: EX 35 Resistance: EM 55 Resistance: I 35 Resistance: S 35 Resistance: P 35 Core Shielding 20 Propulsion Shielding 66 Utility Shielding 66 Weapon Shielding 66 Weapon Cycling 30 Phase Shifting 10 Evasion (%) 55 Targeting Accuracy 8 Target Analysis 12 Core Analysis 6 Recoil Reduction 12 Matter Filtering 50 Energy Filtering 30 Particle Charging 37 Kinecelleration 40 Salvage Targeting 3 Offensive Hacking 30 Relay Coupler Types 1 Relay Coupler Value 29 Item Schematics ----------------- Lrg. Storage Unit | -10/Materials | Hacked Adv. Beam Cannon | -9/Materials | Scanalyzed Hvy. Ion Engine | -9/Materials | Scanalyzed Hvy. Armor Plating | -7/Factory | Scanalyzed Huge Storage Unit | -2/Research | Hacked Robot Schematics ------------------ None Fabricated ------------ Adv. Beam Cannon | x1 | -7/Factory Adv. Beam Cannon | x1 | -7/Factory Huge Storage Unit | x1 | -2/Research Alien Tech Used ----------------- None Achievements -------------- Punisher Pyromaniac Treasure Hunter Challenges ------------ None Game ------ Seed ActiveCloakBox Manual? 0 Play Time 06:19:23 Cumulative 231.6 hours Start 2022.09.04 @ 18:18:02 End 2022.09.08 @ 18:51:50 Sessions 11 Manual Loads 0 Difficulty Explorer Special Mode None Game No. 253 Rogue 119 Adventurer 81 Explorer 53 Win Type 0 Total 11 Types 10/0/1/0/0/0/0/0/0 Lore% 32 Gallery% 67 Achievement% 56 Wizard Run 0 Options --------- ASCII 0 Keyboard 0 Movement Mouse Keybinds 0 Fullscreen 1 Font 12/Tallcaps Map View 83x54 Tactical HUD 1 Map Filters NONE Filters NONE Steam 1 RUN: 890c1d1a-dcf7-4117-b373-2e8441cb1e26